[Event "ESCC-50 2022"]
[Site "Lublin"]
[Date "2022.07.13"]
[Round "9.11"]
[White "Chlewinski, Artur"]
[Black "Krzyzanowski, Wojciech"]
[Result "1/2-1/2"]
[ECO "B33"]
[WhiteElo "1417"]
[BlackElo "1878"]
[Annotator "NA"]
[PlyCount "56"]
[EventDate "2022.07.05"]
[EventType "swiss"]
[EventCountry "POL"]
[SourceTitle "playchess.com"]
[Source "ChessBase"]
[SourceQuality "1"]
[TimeControl "40/5400+30:1800+30"]

1. e4 {[%emt 0:00:03]} c5 {[%emt 0:00:03]} 2. Nf3 {[%emt 0:00:08]} Nc6 {[%emt 0:00:00]} 3. d4 {[%emt 0:00:09]} cxd4 {[%emt 0:00:02]} 4. Nxd4 {[%emt 0:00:01]} Nf6 {[%emt 0:00:06]} 5. Nc3 {[%emt 0:00:13]} e5 {[%emt 0:00:06]} 6. Ndb5 {[%emt 0:00:06]} d6 {[%emt 0:00:18]} 7. Bg5 {[%emt 0:00:14]} a6 {[%emt 0:00:04]} 8. Na3 {[%emt 0:00:07]} b5 {[%emt 0:00:06]} 9. Bxf6 {[%emt 0:01:10]} gxf6 {[%emt 0:00:06]} 10. Nd5 {[%emt 0:00:13]} Bg7 {[%emt 0:00:06]} 11. c3 {[%emt 0:03:45]} f5 {[%emt 0:00:07]} 12. Qd3 {[%emt 0:03:05]} O-O {[%emt 0:07:21]} 13. exf5 {[%emt 0:22:34]} e4 {[%emt 0:00:29]} 14. Qe3 {[%emt 0:00:28]} Bxf5 {[%emt 0:05:23]} 15. Be2 {[%emt 0:01:31]} b4 {[%emt 0:09:22]} 16. Nc4 {[%emt 0:14:13]} bxc3 {[%emt 0:00:30]} 17. bxc3 {[%emt 0:01:09]} Ne5 {[%emt 0:05:12]} 18. O-O {[%emt 0:04:49]} Nxc4 {[%emt 0:07:15]} 19. Bxc4 {[%emt 0:00:46]} Be5 {[%emt 0:02:48]} 20. f4 {[%emt 0:07:41]} exf3 {[%emt 0:03:05]} 21. Qxf3 Be6 {[%emt 0:06:42]} 22. Rab1 {[%emt 0:22:35]} Qh4 {[%emt 0:03:40]} 23. h3 {[%emt 0:12:10]} Qxc4 {[%emt 0:00:28]} 24. Ne7+ {[%emt 0:00:38]} Kh8 {[%emt 0:01:14]} 25. Rb4 {[%emt 0:02:12]} Qxc3 {[%emt 0:03:11]} 26. Qe3 Qd3 27. Qxd3 {[%emt 0:01:47]} Bc3 {[%emt 0:00:35]} 28. Rb7 Be5 1/2-1/2